bitfinex/quotes_ETHUSD_20250411
["timestamp","ask_amount","ask_price","bid_price","bid_amount"]
[1744408303178,6.35659,1573.2,1573.0,0.55]
[1744408303378,0.1438827,1573.1,1573.0,0.55]
[1744408303584,6.35659,1573.2,1573.0,0.55]
[1744408303801,0.1443762,1573.1,1573.0,0.55]
[1744408304032,6.35659,1573.2,1573.0,1.955252]
[1744408304308,0.13221875,1573.1,1573.0,1.955252]
[1744408304670,6.35659,1573.2,1573.0,1.955252]
[1744408305006,0.1302708,1573.1,1573.0,8.312522]
[1744408305306,0.1302708,1573.1,1573.0,8.37608479]
[1744408305518,6.9407646,1573.3,1573.1,6.35684]
[1744408305799,6.9407646,1573.3,1573.1,7.8237762]
[1744408308029,0.3277646,1573.3,1573.2,7.67117]
[1744408308228,0.3277646,1573.3,1573.2,7.73472228]
[1744408308429,0.3277646,1573.3,1573.2,10.73472228]
[1744408309091,0.3277646,1573.3,1573.2,19.84561768]
[1744408309292,0.3277646,1573.3,1573.2,23.94936179]
[1744408310689,0.05,1573.4,1573.3,4.3147]
[1744408310890,0.05,1573.4,1573.3,20.5463554]
[1744408311307,0.05,1573.4,1573.3,21.02135872]
[1744408311522,1e-05,1573.4,1573.3,21.02135872]
[1744408311743,1e-05,1573.4,1573.3,24.73504823]
[1744408314231,12.96085,1574.1,1573.8,0.55]
[1744408314526,12.96085,1574.1,1573.8,6.90398]
[1744408314736,0.15541364,1574.0,1573.8,6.90398]
[1744408315040,0.15541364,1574.0,1573.9,7.77206936]
[1744408315196,0.15541364,1574.0,1573.9,9.8750593]
[1744408315538,0.05,1574.4,1574.2,0.55]
[1744408315715,6.40167,1574.4,1574.2,0.55]
[1744408316403,12.75347,1574.4,1574.2,0.55]
[1744408316610,6.40167,1574.4,1574.2,0.55]
[1744408316816,0.05,1574.4,1574.2,6.90234]
[1744408317027,0.05,1574.4,1574.2,8.397503]
[1744408317228,0.05,1574.4,1574.3,6.35202]
[1744408318121,0.20692514,1574.4,1574.3,6.35202]
[1744408318323,0.05,1574.4,1574.3,6.35202]
[1744408318528,0.20692514,1574.4,1574.3,7.8269723]
[1744408318734,0.05,1574.4,1574.3,7.8269723]
[1744408318928,0.20692514,1574.4,1574.3,7.8269723]
[1744408319135,0.05,1574.4,1574.3,7.8269723]
[1744408319539,0.21474947,1574.4,1574.3,7.8269723]
[1744408319958,0.21474947,1574.4,1574.3,8.3769723]
[1744408320259,0.16474947,1574.4,1574.3,8.3769723]
[1744408320773,6.7414346,1574.8,1574.6,0.55]
[1744408321760,0.3913946,1574.8,1574.4,7.18931723]
[1744408322076,6.35085,1574.6,1574.3,2.0249523]
[1744408322371,6.35135,1574.5,1574.2,7.042583]
[1744408322773,6.35135,1574.5,1574.3,0.55]
[1744408324067,6.35135,1574.5,1574.2,13.394863]
[1744408324068,12.70282,1574.5,1574.2,7.042543]
[1744408324380,12.70276,1574.5,1574.2,0.06351641]
[1744408324678,6.35135,1574.5,1574.2,6.41588641]
[1744408325039,6.35135,1574.5,1574.2,6.35237]
[1744408325386,6.35167,1574.4,1574.2,0.55]
[1744408325870,12.70344,1574.4,1574.2,0.55]
[1744408326173,12.70344,1574.4,1573.8,6.35393]
[1744408326174,0.7902,1574.3,1573.8,6.35393]
[1744408326373,0.7902,1574.3,1573.8,6.35391]
[1744408326533,6.35325,1574.0,1573.8,0.55]
[1744408326763,6.35325,1574.0,1573.7,13.52276]
[1744408326964,7.14345,1574.0,1573.6,12.70949]
[1744408327180,7.14345,1574.0,1573.5,0.47443817]
[1744408327181,6.35422,1573.8,1573.5,6.35517]
[1744408327406,6.35422,1573.8,1573.5,6.41871479]
[1744408327407,12.70858,1573.8,1573.5,6.41871479]
[1744408327609,7.14483,1573.7,1573.4,6.3556]
[1744408327774,12.7102,1573.6,1573.4,1.296114]
[1744408328105,6.35539,1573.5,1573.3,0.2496]
[1744408328268,12.7109,1573.5,1573.3,0.2496]
[1744408329062,6.35566,1573.4,1573.3,0.2496]
[1744408329266,7.14586,1573.4,1573.3,0.2496]
[1744408333089,7.27516723,1573.4,1573.3,0.2496]
[1744408335407,8.63822295,1573.4,1573.3,0.2496]
[1744408335724,15.23522295,1573.4,1573.3,0.2496]
[1744408341020,18.23522295,1573.4,1573.3,0.2496]
[1744408341720,6.35799,1572.9,1572.6,6.35876]
[1744408341922,12.71598,1572.9,1572.6,6.35876]
[1744408342125,0.14502438,1572.8,1572.6,6.35876]
[1744408342523,12.71598,1572.9,1572.6,6.35876]
[1744408342731,0.14460436,1572.7,1572.6,0.55]
[1744408342917,6.35849,1572.7,1572.5,0.8256]
[1744408343525,6.35849,1572.7,1572.5,1.3756]
[1744408343526,0.14418428,1572.6,1572.5,1.3756]
[1744408344327,0.14418428,1572.6,1572.5,0.8256]
[1744408344623,0.14418428,1572.6,1572.3,6.83996851]
[1744408344624,6.50318428,1572.6,1572.3,0.8256]
[1744408344830,6.35935,1572.5,1572.3,0.8256]
[1744408345026,6.35935,1572.5,1572.2,6.36039]
[1744408345228,12.71886,1572.5,1572.1,17.76962426]
[1744408345443,12.71886,1572.5,1572.1,19.84658669]
[1744408345608,12.71886,1572.5,1572.2,0.55]
[1744408346328,12.9529,1572.6,1572.2,0.55]
[1744408346629,6.35932,1572.5,1572.2,6.9104]
[1744408346831,6.594,1572.6,1572.4,7.66018]
[1744408347045,6.594,1572.6,1572.5,6.3593]
[1744408347248,13.71897,1572.9,1572.5,6.3593]
[1744408347420,13.71897,1572.9,1572.6,6.35879]
[1744408347746,20.07685,1572.9,1572.6,6.35879]
[1744408348037,13.71897,1572.9,1572.6,6.35879]
[1744408348210,6.35737,1573.0,1572.6,13.989379]
[1744408348532,6.35737,1573.0,1572.7,0.7508]
[1744408348927,12.7148,1573.0,1572.7,0.7508]
[1744408349318,6.35737,1573.0,1572.7,0.7508]
[1744408350006,56.9302,1573.1,1572.6,6.35878]
[1744408350204,68.98022,1573.1,1572.7,6.9082]
[1744408350404,62.52,1573.1,1572.8,7.12068]
[1744408350609,56.163,1573.1,1572.9,6.35762]
[1744408351410,6.595,1573.1,1572.9,6.35762]
[1744408351611,6.595,1573.1,1572.9,12.71518]
[1744408351920,6.35659,1573.2,1573.0,1.271518]
[1744408352556,12.71152,1573.4,1573.0,13.985928]
[1744408353311,6.3557,1573.4,1573.1,7.66954]
[1744408353511,6.3557,1573.4,1573.1,7.66944]
[1744408362558,6.3557,1573.4,1573.1,14.02617]
[1744408362853,6.3557,1573.4,1573.2,1.402617]
[1744408364146,12.71151,1573.4,1573.2,1.402617]
[1744408364553,6.35606,1573.3,1573.1,1.3127]
[1744408365058,12.71227,1573.3,1573.1,1.3127]
[1744408365460,6.35606,1573.3,1573.1,1.3127]
[1744408366135,12.7087,1573.8,1573.5,6.35512]
[1744408366331,6.35376,1573.9,1573.5,6.41866961]
[1744408366644,13.52916,1574.0,1573.7,0.7736]
[1744408367855,12.70676,1574.0,1573.7,0.7736]
[1744408368460,6.35333,1574.0,1573.7,7.128]
[1744408368637,12.70676,1574.0,1573.7,7.12794]
[1744408368939,12.70676,1574.0,1573.7,8.531209]
[1744408371262,6.35333,1574.0,1573.7,14.885549]
[1744408371471,6.35333,1574.0,1573.7,8.531209]
[1744408372163,12.94685,1574.1,1573.8,6.35403]
[1744408372367,19.29991,1574.1,1573.8,6.35403]
[1744408372535,19.29991,1574.1,1573.8,7.8425549]
[1744408373737,6.35325,1574.0,1573.8,1.4885249]
[1744408374137,6.35364,1573.9,1573.6,6.90472]
[1744408374341,12.70843,1573.8,1573.6,0.55]
[1744408374739,6.3545,1573.7,1573.5,1.48712696]
[1744408375142,12.70909,1573.7,1573.5,1.48712696]
[1744408375565,6.35485,1573.6,1573.5,0.71922696]
[1744408375766,6.35485,1573.6,1573.3,7.11168]
[1744408375965,6.35485,1573.6,1573.4,0.55]
[1744408378778,12.70991,1573.6,1573.4,0.55]
[1744408379554,12.70987,1573.6,1573.3,7.11164]
[1744408379755,12.70987,1573.6,1573.3,8.813439]
[1744408379979,6.35485,1573.6,1573.3,15.65033088]
[1744408380346,6.35485,1573.6,1573.3,8.813439]
[1744408380546,13.50067,1573.6,1573.3,8.057739]
[1744408382372,7.14565,1573.6,1573.3,14.413679]
[1744408382561,7.14565,1573.6,1573.3,8.057739]
[1744408383185,13.50064,1573.6,1573.3,8.057739]
[1744408386288,6.35533,1573.5,1573.3,1.701799]
[1744408388072,12.71006,1573.6,1573.3,8.057849]
[1744408390321,6.35529,1573.5,1573.2,11.15178144]
[1744408390677,6.35529,1573.5,1573.2,17.50810144]
[1744408392644,6.35529,1573.5,1572.9,17.51089631]
[1744408392645,0.7704,1573.5,1573.0,7.12494]
[1744408392940,6.35619,1573.3,1573.0,13.94732854]
[1744408393297,6.35619,1573.3,1573.0,7.59017854]
[1744408393498,6.35619,1573.3,1573.0,16.12182382]
[1744408394520,7.12579,1573.5,1573.2,6.35632]
[1744408394856,7.12579,1573.5,1573.2,12.71266]
[1744408395549,7.12579,1573.5,1573.2,6.35632]
[1744408395705,13.48122,1573.5,1573.2,6.35632]
[1744408395906,13.48123,1573.5,1573.2,7.682627]
[1744408399947,13.48123,1573.5,1573.2,7.682757]
[1744408401381,6.35493,1573.6,1573.3,0.773]
[1744408401667,6.35493,1573.6,1573.3,7.12894]
[1744408401829,12.70997,1573.6,1573.3,7.12894]
[1744408402161,12.70997,1573.6,1573.3,8.6101027]
[1744408402937,6.35493,1573.6,1573.3,14.9660527]
[1744408403157,6.35493,1573.6,1573.3,14.9660427]
[1744408404574,12.70995,1573.6,1573.3,8.6101027]
[1744408408346,6.35527,1573.5,1573.3,0.773]
[1744408409460,12.71078,1573.5,1573.3,0.773]
[1744408410282,12.71068,1573.5,1573.3,0.773]
[1744408411292,12.71069,1573.5,1573.3,0.773]
[1744408411911,6.35527,1573.5,1573.3,0.773]
[1744408412057,12.71069,1573.5,1573.3,0.773]
[1744408412472,5.60527,1573.5,1573.3,0.773]
[1744408412673,11.96068,1573.5,1573.3,0.773]
[1744408413697,11.96068,1573.5,1573.2,6.35633]
[1744408413999,5.60527,1573.5,1573.2,14.54597643]
[1744408414158,5.60527,1573.5,1573.2,18.79310069]
[1744408418084,5.60527,1573.5,1573.2,18.79312069]
[1744408418285,12.94109,1573.8,1573.4,0.8262]
[1744408418286,12.94118,1573.8,1573.4,0.8262]
[1744408418481,7.16935,1573.9,1573.6,6.35484]
[1744408418713,7.16935,1573.9,1573.7,0.635484]
[1744408420836,13.52313,1573.9,1573.7,0.635484]
[1744408421437,7.16935,1573.9,1573.7,0.635484]
[1744408421938,13.52312,1573.9,1573.7,0.635484]
[1744408422140,12.70752,1573.9,1573.7,0.635484]
[1744408422347,6.35375,1573.9,1573.7,1.435584]
[1744408426656,6.35069,1574.7,1573.9,6.35338]
[1744408426836,1.409169,1574.6,1574.0,0.6988704]
[1744408427160,6.35175,1574.4,1574.1,12.70547]
[1744408427624,12.70274,1574.5,1574.1,12.70547]
[1744408430565,12.70274,1574.5,1574.1,13.17220676]
[1744408431272,0.7741,1574.6,1574.3,6.35185]
[1744408431467,0.7741,1574.6,1574.2,1.3534]
[1744408431468,6.581,1574.7,1574.5,7.15457]
[1744408431768,6.581,1574.7,1574.4,6.986715]
[1744408431937,6.581,1574.7,1574.4,7.46028343]
[1744408433697,6.581,1574.7,1574.5,6.35121]
[1744408433855,6.581,1574.7,1574.5,7.73235934]
[1744408435186,0.3913946,1574.8,1574.5,8.48263934]
[1744408435563,0.3913946,1574.8,1574.5,14.83372934]
[1744408435763,0.3913946,1574.8,1574.6,6.35078]
[1744408436088,0.14525942,1574.7,1574.6,6.35068]
[1744408436292,0.14525942,1574.7,1574.6,7.83402293]
[1744408437188,0.14525942,1574.7,1574.6,8.58442293]
[1744408439193,0.14525942,1574.7,1574.6,9.13442293]
[1744408443589,0.14525942,1574.7,1574.6,12.13442293]
[1744408443787,0.14525942,1574.7,1574.6,10.83402293]
[1744408443987,0.14525942,1574.7,1574.4,11.21066343]
[1744408444202,0.14525942,1574.7,1574.5,3.0]
[1744408444572,0.14525942,1574.7,1574.4,6.986665]
[1744408444573,6.49575942,1574.7,1574.4,6.986665]
[1744408444770,6.49575942,1574.7,1574.3,7.10234]
[1744408444771,6.49575942,1574.7,1574.3,6.35194]
[1744408444996,6.3509,1574.6,1574.3,7.062174]
[1744408445300,0.13148943,1574.5,1574.3,7.062174]
[1744408445597,0.88348943,1574.5,1574.3,7.062174]
[1744408445803,0.88348943,1574.5,1574.3,13.414034]
[1744408445971,0.88348943,1574.5,1574.3,7.062134]
[1744408446171,0.88348943,1574.5,1574.3,7.5491445]
[1744408446395,0.88348943,1574.5,1574.3,13.9010445]
[1744408446700,7.23482943,1574.5,1574.1,6.35279]
[1744408446905,12.70374,1574.4,1574.0,10.60013426]
[1744408447111,12.70374,1574.4,1574.0,6.35301]
[1744408447112,0.88227758,1574.3,1574.0,6.35301]
[1744408447310,13.58663758,1574.3,1573.9,7.17104]
[1744408447512,13.58663758,1574.3,1573.9,7.070634]
[1744408447513,6.35254,1574.2,1573.9,7.070634]
[1744408447808,0.12883704,1574.1,1573.9,0.717104]
[1744408448208,12.70517,1574.2,1573.9,0.717104]
[1744408448414,0.12848765,1574.0,1573.9,0.717104]
[1744408448609,6.35248,1574.2,1573.9,7.070684]
[1744408448810,0.12848765,1574.0,1573.9,6.35349]
[1744408449002,6.35247,1574.2,1573.9,6.35349]
[1744408449614,0.12883704,1574.1,1573.9,6.35349]
[1744408450115,0.12848765,1574.0,1573.9,6.35349]
[1744408450312,12.70506,1574.2,1573.8,6.35394]
[1744408450515,0.12883704,1574.1,1573.8,6.35394]
[1744408450684,0.7573,1574.0,1573.8,6.35394]
[1744408450885,0.12813821,1573.9,1573.8,6.35394]
[1744408455649,7.12345,1574.1,1573.8,6.35394]
[1744408455931,13.47642,1574.1,1573.8,6.35394]
[1744408456130,0.12758765,1574.0,1573.8,7.624768]
[1744408459439,0.12758765,1574.0,1573.8,1.270828]
[1744408462337,0.12758765,1574.0,1573.7,12.70868]
[1744408462338,6.35374,1573.9,1573.6,0.8026]
[1744408462641,6.35374,1573.9,1573.5,6.35512]
[1744408462642,7.14374,1573.9,1573.5,6.35512]
[1744408463005,6.50097361,1573.8,1573.4,7.17562]
[1744408463210,6.50097361,1573.8,1573.4,13.53118]
[1744408463433,6.35405,1573.8,1573.4,13.53118]
[1744408463638,6.35448,1573.7,1573.5,1.353118]
[1744408464847,6.35448,1573.7,1573.4,6.35552]
[1744408465342,12.70906,1573.7,1573.4,6.35552]
[1744408465541,13.49906,1573.7,1573.3,18.81314732]
[1744408465746,6.35487,1573.6,1573.3,12.45722732]
[1744408466049,6.35487,1573.6,1573.3,18.86191699]
[1744408466545,6.35487,1573.6,1573.3,12.50596699]
[1744408466733,6.35487,1573.6,1573.3,8.25884273]
[1744408467915,6.35487,1573.6,1573.3,14.61479273]
[1744408468748,6.35487,1573.6,1573.3,8.25884273]
[1744408468935,12.70992,1573.6,1573.3,8.25884273]
[1744408469131,6.35487,1573.6,1573.2,7.17645]
[1744408469535,6.35487,1573.6,1573.1,4.24712426]
[1744408469536,0.79,1573.3,1573.1,4.24712426]
[1744408470347,6.35584,1573.4,1573.1,10.60398426]
[1744408470754,6.35584,1573.4,1573.1,12.7136]
[1744408470953,6.35584,1573.4,1573.1,14.40967243]
[1744408471448,6.35584,1573.4,1573.1,8.05281243]
[1744408471748,12.71169,1573.4,1573.1,6.35674]
[1744408472249,6.35613,1573.3,1573.0,10.60430426]
[1744408472654,12.71322,1573.2,1573.0,4.24712426]
[1744408472831,6.35648,1573.2,1573.0,4.24712426]
[1744408473236,12.7131,1573.2,1573.0,4.24712426]
[1744408474157,12.7131,1573.2,1572.9,9.35755]
[1744408474454,6.35648,1573.2,1572.9,9.35755]
[1744408474650,7.357,1573.3,1572.9,1.571549]
[1744408474859,7.14757,1573.5,1573.2,12.71272]
[1744408475436,0.7922,1573.5,1573.2,12.71272]
[1744408476760,0.7922,1573.5,1573.2,6.35636]
[1744408476761,7.1475,1573.5,1573.2,6.35636]
[1744408478726,7.1475,1573.5,1573.2,12.7127]
[1744408479745,6.3553,1573.5,1573.2,13.5135]
[1744408479940,20.0966,1573.6,1573.3,7.70727]
[1744408480132,19.2771,1573.6,1573.3,7.70727]
[1744408480532,6.35535,1573.5,1573.2,7.15715]
[1744408480967,12.71075,1573.5,1573.2,7.15715]
[1744408481475,6.35535,1573.5,1573.2,7.15715]
[1744408481774,6.35535,1573.5,1573.2,13.51349]
[1744408483497,12.71075,1573.5,1573.2,7.15714]
[1744408483991,12.92195,1573.6,1573.2,2.20083639]
[1744408484153,6.567,1573.6,1573.3,0.55]
[1744408484357,6.567,1573.6,1573.5,7.15605]
[1744408484585,20.09508,1573.9,1573.6,6.35473]
[1744408484768,20.09514,1573.9,1573.6,6.35473]
[1744408485854,13.74126,1573.9,1573.6,6.35473]
[1744408486060,20.09505,1573.9,1573.6,6.35473]
[1744408486299,20.09505,1573.9,1573.6,7.705798]
[1744408488427,6.35406,1573.8,1573.6,1.351068]
[1744408489169,6.35406,1573.8,1573.5,13.98384681]
[1744408489979,6.35406,1573.8,1573.5,13.98385681]
[1744408496038,6.35406,1573.8,1573.6,6.35484]
[1744408504543,20.09512,1573.9,1573.6,6.35484]
[1744408508425,12.92177,1573.9,1573.6,12.70968]
[1744408508625,12.92177,1573.9,1573.6,14.10748328]
[1744408508825,19.27565,1573.9,1573.6,7.75264328]
[1744408509726,12.92177,1573.9,1573.6,7.75264328]
[1744408510566,12.92177,1573.9,1573.6,14.10737328]
[1744408510768,19.27557,1573.9,1573.6,7.75253328]
[1744408511253,12.92177,1573.9,1573.6,7.75253328]
[1744408511569,19.27556,1573.9,1573.6,7.75253328]
[1744408512787,6.35377,1573.9,1573.7,0.7761]
[1744408513069,6.35333,1574.0,1573.7,8.82863644]
[1744408513245,12.70677,1574.0,1573.7,7.13037]
[1744408513792,6.35365,1573.9,1573.7,0.7761]
[1744408514082,12.70743,1573.9,1573.6,9.23014111]
[1744408514797,12.70743,1573.9,1573.6,7.13085]
[1744408520493,6.35365,1573.9,1573.6,7.13082]
[1744408521492,6.35365,1573.9,1573.6,13.48555]
[1744408521795,6.35365,1573.9,1573.6,7.13082]
[1744408523497,12.70742,1573.9,1573.6,7.13082]
[1744408526605,12.70742,1573.9,1573.6,7.03322]
[1744408529607,13.978162,1573.9,1573.6,7.03322]
[1744408529905,12.70752,1573.9,1573.6,7.03322]
[1744408530069,6.35365,1573.9,1573.6,7.03322]
[1744408530580,6.35365,1573.9,1573.6,11.28034426]
[1744408531505,7.16015,1573.9,1573.6,10.60184426]
[1744408532306,13.51398,1573.9,1573.6,10.60184426]
[1744408533502,7.16015,1573.9,1573.6,10.60184426]
[1744408533709,13.51398,1573.9,1573.6,10.60184426]
[1744408534408,13.51398,1573.9,1573.7,4.24712426]
[1744408538917,13.51402,1573.9,1573.7,4.24712426]
[1744408539820,7.16015,1573.9,1573.7,4.24712426]
[1744408540624,13.51397,1573.9,1573.7,4.24712426]
[1744408542621,7.16015,1573.9,1573.7,4.24712426]
[1744408543627,13.51393,1573.9,1573.7,4.24712426]
[1744408547125,6.35404,1573.8,1573.7,4.24712426]
[1744408547325,13.51407,1573.9,1573.7,4.24712426]
[1744408547824,6.35404,1573.8,1573.7,4.24712426]
[1744408552647,0.7995,1574.3,1573.7,5.07992426]
[1744408552806,6.35292,1574.1,1573.8,12.70777]
[1744408553001,6.35243,1574.2,1573.8,12.77130631]
[1744408553222,6.35243,1574.2,1573.9,12.70726]
[1744408553710,6.35243,1574.2,1573.9,6.35363]
[1744408554246,6.35243,1574.2,1573.9,7.18643]
[1744408555699,12.705,1574.2,1573.9,11.43355426]
[1744408556062,6.35243,1574.2,1573.9,11.43355426]
[1744408557619,14.055419,1574.2,1573.9,10.60075426]
[1744408557827,6.35287,1574.1,1573.9,4.24712426]
[1744408558045,6.35324,1574.0,1573.9,4.24712426]
[1744408558655,7.12474,1574.0,1573.9,4.24712426]
[1744408559310,10.59246266,1574.0,1573.9,4.24712426]
[1744408559513,13.78712904,1574.0,1573.9,4.24712426]
[1744408560018,13.78712904,1574.0,1573.9,4.26e-06]
[1744408560429,13.78712904,1574.0,1573.4,5.55792602]
[1744408560430,6.35445,1573.7,1573.6,4.26e-06]
[1744408560657,13.72505,1573.7,1573.6,4.26e-06]
[1744408560829,15.732979,1573.7,1573.6,4.26e-06]
[1744408564396,6.35592,1573.4,1573.2,2.09929111]
[1744408564690,6.35592,1573.4,1573.1,0.8177]
[1744408564691,6.35606,1573.3,1573.1,0.8177]
[1744408564995,7.3716,1573.3,1572.8,2.09929111]
[1744408565283,6.35738,1573.0,1572.8,2.09929111]
[1744408568987,6.35768,1572.9,1572.8,2.09929111]
[1744408569775,6.35768,1572.9,1572.7,2.09929111]
[1744408569776,12.71554,1572.9,1572.7,2.09929111]
[1744408569982,12.71552,1572.9,1572.7,2.09929111]
[1744408570590,12.71552,1572.9,1572.6,9.35888]
[1744408570791,12.71552,1572.9,1572.7,2.09929111]
[1744408571091,12.71552,1572.9,1572.6,2.09929111]
[1744408571092,12.71645,1572.8,1572.6,2.09929111]
[1744408571296,12.71656,1572.8,1572.6,2.09929111]
[1744408572498,6.35849,1572.7,1572.6,2.09929111]
[1744408573688,12.71727,1572.7,1572.4,2.93139111]
[1744408574576,6.35896,1572.6,1572.4,2.09929111]
[1744408575275,12.71803,1572.6,1572.4,2.09929111]
[1744408575600,6.35896,1572.6,1572.4,2.09929111]
[1744408576898,13.432366,1572.6,1572.4,2.09929111]
[1744408577329,13.432366,1572.6,1572.2,11.26520018]
[1744408577604,6.35933,1572.5,1572.2,11.26520018]
[1744408578397,6.35933,1572.5,1572.2,4.90482018]
[1744408578902,12.71889,1572.5,1572.2,4.90482018]
[1744408579202,6.35933,1572.5,1572.2,4.90482018]
[1744408579392,12.71876,1572.5,1572.2,4.90482018]
[1744408579588,13.50276,1572.5,1572.2,4.09972018]
[1744408579792,14.8460656,1572.5,1572.2,4.09972018]
[1744408579992,6.35971,1572.4,1572.1,0.05]
[1744408580498,6.36022,1572.3,1572.1,0.05]
[1744408583325,6.545,1572.5,1572.2,4.87632018]
[1744408584132,6.545,1572.5,1572.3,6.36008]
[1744408584334,6.545,1572.5,1572.2,11.79069324]
[1744408584492,6.545,1572.5,1572.2,18.15110324]
[1744408589057,6.545,1572.5,1572.3,6.3601]
[1744408589753,6.545,1572.5,1572.2,11.79069324]
[1744408592263,6.545,1572.5,1572.2,18.15110324]
[1744408592556,6.545,1572.5,1572.3,6.36005]
[1744408593671,6.545,1572.5,1572.3,6.35999]
[1744408593958,6.545,1572.5,1572.3,7.633974]
[1744408595379,6.545,1572.5,1572.3,13.993964]
[1744408595582,6.545,1572.5,1572.3,7.633974]
[1744408596080,6.545,1572.5,1572.3,1.273984]
[1744408596280,6.545,1572.5,1572.2,11.79071324]
[1744408596582,6.545,1572.5,1572.2,18.15110324]
[1744408597474,6.545,1572.5,1572.2,11.79070324]
[1744408597681,6.545,1572.5,1572.2,18.15109324]
[1744408599186,12.90432,1572.5,1572.2,18.15109324]
[1744408599390,12.90432,1572.5,1572.2,16.15405365]
[1744408600383,12.90432,1572.5,1572.2,9.79366365]
[1744408603103,12.90432,1572.5,1572.2,16.15404365]
[1744408604010,12.90432,1572.5,1572.2,9.79365365]
[1744408604381,12.90432,1572.5,1572.2,16.15405365]
[1744408604806,6.35932,1572.5,1572.2,16.15405365]
[1744408605718,6.35932,1572.5,1572.2,14.05137306]
[1744408605885,6.35932,1572.5,1572.2,16.15405365]
[1744408606203,6.35932,1572.5,1572.2,9.79365365]
[1744408606511,6.35932,1572.5,1572.2,16.15404365]
[1744408609630,12.71875,1572.5,1572.2,9.79365365]
[1744408609787,12.71875,1572.5,1572.2,9.23966059]
[1744408611423,6.35932,1572.5,1572.2,9.23966059]
[1744408611606,12.71877,1572.5,1572.2,9.23966059]
[1744408612123,13.53767,1572.5,1572.2,8.46306059]
[1744408616816,12.71877,1572.5,1572.2,8.46306059]
[1744408617024,6.35932,1572.5,1572.2,10.08717465]
[1744408617730,6.35932,1572.5,1572.3,6.36009]
[1744408617937,6.35932,1572.5,1572.2,14.82346059]
[1744408619835,12.89602,1572.6,1572.3,7.11729]
[1744408620053,6.3582,1572.8,1572.5,6.35906]
[1744408620235,13.4342,1572.8,1572.5,6.35906]
[1744408620920,6.35851,1572.7,1572.5,6.35906]
[1744408621534,7.1764,1572.9,1572.6,2.85988059]
[1744408621732,12.89452,1573.0,1572.7,6.35847]
[1744408622044,12.89452,1573.0,1572.7,6.35836]
[1744408622412,19.25198,1573.0,1572.7,6.35836]
[1744408622946,0.7998,1573.3,1572.9,0.55]
[1744408623123,6.35657,1573.2,1572.9,6.90765]
[1744408623312,20.03923,1573.3,1572.9,13.2653]
[1744408623712,13.68299,1573.3,1573.0,7.16085]
[1744408623912,20.0392,1573.3,1573.0,7.16085]
[1744408625248,13.68299,1573.3,1573.0,9.26353059]
[1744408625546,12.88319,1573.3,1573.0,9.26353059]
[1744408626045,19.23779,1573.5,1573.1,13.26345]
[1744408626549,6.35568,1573.4,1573.1,13.26345]
[1744408627826,6.35568,1573.4,1573.1,13.26344]
[1744408628853,6.3549,1573.6,1573.2,7.12666]
[1744408629053,6.35467,1573.7,1573.4,7.12594]
[1744408629257,6.35467,1573.7,1573.4,14.249064]
[1744408629453,12.88007,1573.8,1573.5,12.71037]
[1744408629653,12.88007,1573.8,1573.5,6.35513]
[1744408630156,19.23426,1573.8,1573.5,6.84131702]
[1744408631431,19.23445,1573.8,1573.5,6.84131702]
[1744408631836,6.526,1573.8,1573.6,0.758]
[1744408632033,55.93961,1574.0,1573.7,6.90426]
[1744408632239,6.35299,1574.1,1573.8,7.11196]
[1744408632660,6.525,1574.2,1573.8,7.11192]
[1744408632870,6.525,1574.2,1573.9,6.35359]
[1744408632871,12.87757,1574.2,1573.9,6.35359]
[1744408633564,6.35135,1574.5,1574.2,13.46261]
[1744408633749,6.35135,1574.5,1574.2,7.1103]
[1744408633953,12.70277,1574.5,1574.2,7.1103]
[1744408634438,12.70278,1574.5,1574.2,7.5930917]
[1744408635046,6.35135,1574.5,1574.2,7.5930917]
[1744408635634,12.70278,1574.5,1574.2,7.5930917]
[1744408636134,6.35214,1574.3,1574.0,0.7784]
[1744408636342,6.35244,1574.2,1574.0,0.7784]
[1744408637052,12.70513,1574.2,1573.9,6.35349]
[1744408637958,12.70434,1574.3,1574.1,0.7784]
[1744408638130,12.70432,1574.3,1574.0,6.35312]
[1744408640070,12.70432,1574.3,1573.9,13.9681717]
[1744408641342,14.055822,1574.3,1573.9,13.9681717]
[1744408641540,6.35258,1574.2,1573.9,13.9682117]
[1744408641838,1.351502,1574.3,1573.9,13.9682117]
[1744408642044,6.35224,1574.3,1573.9,13.9682117]
[1744408642562,12.70451,1574.3,1573.9,13.9682117]
[1744408642973,6.35243,1574.2,1573.9,13.9682117]
[1744408643765,6.35243,1574.2,1573.9,7.6146817]
[1744408643970,6.35166,1574.4,1574.1,7.13111]
[1744408644538,6.35166,1574.4,1574.1,13.48383]
[1744408646373,6.35166,1574.4,1574.1,7.13111]
[1744408646540,6.35209,1574.3,1574.1,0.7784]
[1744408646966,19.22577,1574.5,1574.1,13.48404]
[1744408648677,6.35167,1574.4,1574.1,7.13122]
[1744408648850,6.35167,1574.4,1574.1,13.48404]
[1744408649379,19.22597,1574.5,1574.1,13.48404]
[1744408649586,19.22597,1574.5,1574.1,15.29700048]
[1744408649876,19.22575,1574.5,1574.2,6.35236]
[1744408650177,19.22577,1574.5,1574.2,6.35236]
[1744408650383,6.35163,1574.4,1574.1,15.29700048]
[1744408655989,12.87435,1574.5,1574.2,6.35242]
[1744408656152,6.35135,1574.5,1574.2,6.35242]
[1744408656358,12.70126,1574.7,1574.4,7.15895]
[1744408656695,13.2534146,1574.8,1574.5,12.7021]
[1744408656891,6.9033946,1574.8,1574.5,6.35101]
[1744408657192,6.9033946,1574.8,1574.5,12.70211]
[1744408657407,6.9033946,1574.8,1574.5,14.4689784]
[1744408657606,6.9033946,1574.8,1574.6,0.8075]
[1744408658112,0.3913946,1574.8,1574.6,0.8075]
[1744408659412,6.7414146,1574.8,1574.6,0.8075]